[Event "Marienbad Open IM2 2020"]
[Site "Marianske Lazne"]
[Date "2020.01.19"]
[Round "2.11"]
[White "Tancsa, Tamas"]
[Black "Nguyen, Alex Dac-Vuong"]
[Result "0-1"]
[ECO "B41"]
[WhiteElo "2193"]
[BlackElo "2401"]
[Annotator "RC"]
[PlyCount "156"]
[EventDate "2020.01.18"]
[EventType "tourn"]
[EventCountry "CZE"]
[SourceTitle "playchess.com"]
[Source "ChessBase"]
[SourceQuality "1"]
[TimeControl "40/5400+30:1800+30"]

1. e4 {[%emt 0:00:00]} c5 {[%emt 0:00:00]} 2. Nf3 {[%emt 0:00:00]} e6 {[%emt 0:00:00]} 3. d4 {[%emt 0:00:15]} cxd4 {[%emt 0:00:00]} 4. Nxd4 {[%emt 0:00:10]} a6 {[%emt 0:00:00]} 5. c4 {[%emt 0:00:18]} Nf6 {[%emt 0:00:11]} 6. Nc3 {[%emt 0:00:32]} Bb4 {[%emt 0:00:07]} 7. Qf3 {[%emt 0:00:37]} Bxc3+ {[%emt 0:00:57]} 8. bxc3 {[%emt 0:00:28]} d6 {[%emt 0:00:26]} 9. Ba3 {[%emt 0:02:03]} O-O {[%emt 0:03:02]} 10. Nb3 {[%emt 0:05:57]} e5 {[%emt 0:02:25]} 11. Be2 {[%emt 0:06:50]} Qc7 {[%emt 0:12:01]} 12. Rd1 {[%emt 0:07:56]} Rd8 {[%emt 0:00:52]} 13. O-O {[%emt 0:00:51]} b6 {[%emt 0:15:19]} 14. Qe3 {[%emt 0:00:52]} Bb7 {[%emt 0:00:38]} 15. f3 {[%emt 0:01:12]} a5 {[%emt 0:12:58]} 16. g4 {[%emt 0:05:49]} Na6 {[%emt 0:00:49]} 17. Rd2 {[%emt 0:11:59]} Nc5 {[%emt 0:01:52]} 18. Rfd1 {[%emt 0:00:50]} Bc6 {[%emt 0:01:30]} 19. Nxc5 {[%emt 0:01:42]} dxc5 {[%emt 0:01:31]} 20. Bc1 {[%emt 0:04:38]} Ba4 {[%emt 0:01:33]} 21. Rxd8+ {[%emt 0:01:06]} Rxd8 {[%emt 0:00:05]} 22. Rxd8+ {[%emt 0:00:37]} Qxd8 {[%emt 0:00:02]} 23. Qd3 {[%emt 0:00:30]} Qxd3 {[%emt 0:04:05]} 24. Bxd3 {[%emt 0:00:18]} Ne8 {[%emt 0:06:15]} 25. f4 {[%emt 0:09:51]} Bd1 {[%emt 0:13:00]} 26. h3 {[%emt 0:09:40]} Nc7 {[%emt 0:03:47]} 27. fxe5 {[%emt 0:02:52]} Ne6 {[%emt 0:00:16]} 28. Kf2 {[%emt 0:00:14]} g5 {[%emt 0:00:34]} 29. Ke1 {[%emt 0:01:16]} Ba4 {[%emt 0:00:05]} 30. Be3 {[%emt 0:01:47]} Kg7 {[%emt 0:00:40]} 31. Kd2 {[%emt 0:02:30]} Kg6 {[%emt 0:01:17]} 32. Ke1 {[%emt 0:00:43]} h6 {[%emt 0:02:28]} 33. Kd2 {[%emt 0:02:20]} Kg7 {[%emt 0:01:44]} 34. Ke1 {[%emt 0:00:12]} Bd7 {[%emt 0:01:37]} 35. Ke2 {[%emt 0:01:59]} Nd8 {[%emt 0:06:24]} 36. Bf2 {[%emt 0:01:59]} Nc6 {[%emt 0:00:55]} 37. Bg3 {[%emt 0:01:03]} Be6 {[%emt 0:00:04]} 38. Ke3 {[%emt 0:00:15]} a4 {[%emt 0:03:36]} 39. a3 {[%emt 0:04:26]} Na5 {[%emt 0:00:11]} 40. Bh2 {[%emt 0:01:34]} Kf8 {[%emt 0:00:51]} 41. Bg3 {[%emt 0:30:53]} Ke7 {[%emt 0:30:13]} 42. Bh2 {[%emt 0:00:47]} Ke8 {[%emt 0:00:00]} 43. Bg3 {[%emt 0:00:00]} Kf8 {[%emt 0:00:00]} 44. Bh2 {[%emt 0:00:00]} Kg7 {[%emt 0:00:00]} 45. Bg3 {[%emt 0:00:00]} Kh7 {[%emt 0:00:00]} 46. Bh2 {[%emt 0:00:00]} Kg6 {[%emt 0:00:00]} 47. Be2 {[%emt 0:00:00]} Bxc4 {[%emt 0:00:00]} 48. e6 {[%emt 0:00:00]} fxe6 {[%emt 0:00:00]} 49. Bd3 {[%emt 0:00:00]} b5 {[%emt 0:05:57]} 50. Bd6 {[%emt 0:00:00]} Bxd3 {[%emt 0:00:04]} 51. Kxd3 {[%emt 0:00:00]} c4+ {[%emt 0:01:36]} 52. Kc2 {[%emt 0:00:00]} Nc6 {[%emt 0:00:27]} 53. Bc7 {[%emt 0:00:00]} h5 {[%emt 0:01:09]} 54. Kd2 {[%emt 0:00:00]} hxg4 {[%emt 0:00:44]} 55. hxg4 {[%emt 0:00:00]} Ne7 {[%emt 0:00:39]} 56. Ke3 {[%emt 0:00:00]} Nc6 {[%emt 0:00:03]} 57. Kd2 {[%emt 0:00:00]} Kf6 {[%emt 0:00:03]} 58. Bb6 {[%emt 0:00:00]} Ke5 {[%emt 0:00:28]} 59. Ke3 {[%emt 0:00:00]} Kf6 {[%emt 0:00:01]} 60. Kd2 {[%emt 0:00:00]} Ke5 {[%emt 0:01:11]} 61. Ke3 {[%emt 0:00:00]} Kd6 {[%emt 0:00:07]} 62. Ke2 {[%emt 0:00:00]} Ke7 {[%emt 0:01:46]} 63. Be3 {[%emt 0:04:02]} Kf6 {[%emt 0:00:11]} 64. Bb6 {[%emt 0:00:10]} Kf7 {[%emt 0:01:09]} 65. Bc7 {[%emt 0:01:51]} Ke7 {[%emt 0:01:06]} 66. Bb6 {[%emt 0:00:15]} Ne5 {[%emt 0:00:20]} 67. Be3 {[%emt 0:00:08]} Nxg4 {[%emt 0:00:04]} 68. Bxg5+ {[%emt 0:00:19]} Kd6 {[%emt 0:00:15]} 69. Bf4+ {[%emt 0:00:53]} Kc6 {[%emt 0:00:29]} 70. Kf3 {[%emt 0:00:40]} Nf6 {[%emt 0:00:05]} 71. Ke3 {[%emt 0:00:58]} Nd7 {[%emt 0:00:20]} 72. Kd4 {[%emt 0:03:09]} e5+ {[%emt 0:01:09]} 73. Bxe5 {[%emt 0:00:10]} Nxe5 {[%emt 0:00:01]} 74. Kxe5 {[%emt 0:00:13]} b4 {[%emt 0:00:03]} 75. cxb4 {[%emt 0:02:53]} c3 {[%emt 0:00:05]} 76. b5+ {[%emt 0:00:10]} Kxb5 {[%emt 0:00:09]} 77. Kd6 {[%emt 0:00:15]} c2 {[%emt 0:00:06]} 78. e5 {[%emt 0:00:04]} c1=Q 0-1

[Event "Marienbad Open IM2 2020"]
[Site "Marianske Lazne"]
[Date "2020.01.20"]
[Round "3.12"]
[White "Strebkovs, Andrejs"]
[Black "Sharma Isha"]
[Result "1/2-1/2"]
[ECO "A45"]
[WhiteElo "2278"]
[BlackElo "2169"]
[Annotator "ChessBase"]
[PlyCount "68"]
[EventDate "2020.01.18"]
[EventType "tourn"]
[EventCountry "CZE"]
[SourceTitle "playchess.com"]
[Source "ChessBase"]
[SourceQuality "1"]
[TimeControl "40/5400+30:1800+30"]

1. d4 {[%emt 0:00:00]} Nf6 {[%emt 0:00:00]} 2. g3 {[%emt 0:00:49]} g6 {[%emt 0:00:41]} 3. Bg2 {[%emt 0:00:17]} Bg7 {[%emt 0:00:07]} 4. e4 {[%emt 0:00:19]} d6 {[%emt 0:00:17]} 5. Nc3 {[%emt 0:00:57]} c6 {[%emt 0:00:15]} 6. Nge2 {[%emt 0:00:14]} O-O {[%emt 0:00:11]} 7. h3 {[%emt 0:00:22]} d5 {[%emt 0:01:53]} 8. e5 {[%emt 0:02:03]} Ne8 {[%emt 0:00:07]} 9. O-O {[%emt 0:00:34]} Nc7 {[%emt 0:01:02]} 10. f4 {[%emt 0:00:59]} f5 {[%emt 0:03:20]} 11. Bf3 {[%emt 0:02:04]} a5 {[%emt 0:05:10]} 12. g4 {[%emt 0:01:53]} h6 {[%emt 0:00:08]} 13. Ng3 {[%emt 0:01:50]} e6 {[%emt 0:03:57]} 14. Rf2 {[%emt 0:08:49]} b5 {[%emt 0:07:58]} 15. Rg2 {[%emt 0:04:23]} Kh7 {[%emt 0:03:31]} 16. g5 {[%emt 0:12:13]} hxg5 {[%emt 0:01:55]} 17. fxg5 {[%emt 0:05:32]} c5 {[%emt 0:02:04]} 18. h4 {[%emt 0:02:47]} cxd4 {[%emt 0:00:41]} 19. Nce2 {[%emt 0:02:22]} Nc6 {[%emt 0:04:08]} 20. h5 {[%emt 0:01:55]} Nxe5 {[%emt 0:02:45]} 21. hxg6+ {[%emt 0:02:06]} Kg8 {[%emt 0:00:16]} 22. Nf4 {[%emt 0:02:47]} Nc4 {[%emt 0:19:22]} 23. Ngh5 {[%emt 0:03:09]} e5 {[%emt 0:07:17]} 24. Nf6+ {[%emt 0:09:12]} Bxf6 {[%emt 0:05:09]} 25. gxf6 {[%emt 0:00:04]} Rxf6 {[%emt 0:04:15]} 26. Qe1 {[%emt 0:04:45]} Rc6 {[%emt 0:10:51]} 27. Nd3 {[%emt 0:11:05]} e4 {[%emt 0:01:33]} 28. Bg5 {[%emt 0:00:31]} Qd7 {[%emt 0:00:52]} 29. Qh4 {[%emt 0:05:08]} Qg7 {[%emt 0:06:12]} 30. Bh6 {[%emt 0:03:09]} Qf6 {[%emt 0:00:06]} 31. Bg5 {[%emt 0:00:32]} Qh8 {[%emt 0:00:25]} 32. Bh6 {[%emt 0:01:26]} Qf6 {[%emt 0:00:29]} 33. Bg5 {[%emt 0:02:08]} Qg7 {[%emt 0:00:07]} 34. Bh6 {[%emt 0:01:36]} Qf6 {[%emt 0:00:13]} 1/2-1/2

[Event "Marienbad Open IM2 2020"]
[Site "Marianske Lazne"]
[Date "2020.01.21"]
[Round "4.11"]
[White "Tancsa, Tamas"]
[Black "Vatsal Singhania"]
[Result "0-1"]
[ECO "B69"]
[WhiteElo "2193"]
[BlackElo "2230"]
[Annotator "ChessBase"]
[PlyCount "68"]
[EventDate "2020.01.18"]
[EventType "tourn"]
[EventCountry "CZE"]
[SourceTitle "playchess.com"]
[Source "ChessBase"]
[SourceQuality "1"]
[TimeControl "40/5400+30:1800+30"]

1. e4 {[%emt 0:00:00]} c5 {[%emt 0:00:00]} 2. Nf3 {[%emt 0:00:00]} d6 {[%emt 0:00:00]} 3. d4 {[%emt 0:00:00]} cxd4 4. Nxd4 {[%emt 0:00:17]} Nf6 {[%emt 0:00:00]} 5. Nc3 {[%emt 0:00:13]} Nc6 {[%emt 0:00:00]} 6. Bg5 {[%emt 0:00:16]} e6 {[%emt 0:00:00]} 7. Qd2 {[%emt 0:00:29]} a6 {[%emt 0:00:00]} 8. O-O-O {[%emt 0:00:35]} Bd7 {[%emt 0:00:00]} 9. f4 {[%emt 0:00:22]} Be7 {[%emt 0:00:04]} 10. Nf3 {[%emt 0:00:39]} b5 {[%emt 0:00:13]} 11. Bxf6 gxf6 {[%emt 0:00:05]} 12. f5 {[%emt 0:02:13]} Qb6 {[%emt 0:01:21]} 13. Bd3 {[%emt 0:12:09]} O-O-O {[%emt 0:01:13]} 14. Ne2 {[%emt 0:06:13]} Kb8 {[%emt 0:01:55]} 15. Kb1 {[%emt 0:03:20]} Bc8 {[%emt 0:02:33]} 16. Nf4 {[%emt 0:03:17]} Qc5 {[%emt 0:04:27]} 17. Rhe1 {[%emt 0:06:47]} Rhg8 {[%emt 0:08:25]} 18. Rc1 {[%emt 0:13:24]} Rge8 {[%emt 0:08:22]} 19. c4 {[%emt 0:06:42]} b4 {[%emt 0:00:12]} 20. Nd5 {[%emt 0:05:51]} a5 {[%emt 0:02:07]} 21. Qh6 {[%emt 0:06:20]} Ne5 {[%emt 0:01:55]} 22. Nxe5 {[%emt 0:04:23]} dxe5 {[%emt 0:00:15]} 23. Nxe7 {[%emt 0:00:06]} Qxe7 {[%emt 0:00:08]} 24. Bc2 {[%emt 0:03:31]} Bb7 {[%emt 0:00:55]} 25. Ba4 {[%emt 0:02:06]} Rg8 {[%emt 0:00:44]} 26. c5 {[%emt 0:00:28]} Rxg2 {[%emt 0:00:37]} 27. c6 {[%emt 0:06:51]} Rdd2 {[%emt 0:00:06]} 28. c7+ {[%emt 0:00:56]} Kc8 {[%emt 0:00:26]} 29. Bb3 {[%emt 0:00:19]} Rxb2+ {[%emt 0:00:30]} 30. Ka1 {[%emt 0:00:01]} Rxa2+ {[%emt 0:00:16]} 31. Bxa2 {[%emt 0:00:52]} b3 {[%emt 0:00:03]} 32. Qe3 {[%emt 0:07:35]} Rxa2+ {[%emt 0:00:05]} 33. Kb1 {[%emt 0:00:12]} Qa3 {[%emt 0:00:05]} 34. Qc3 {[%emt 0:00:14]} Rxh2 0-1

[Event "Marienbad Open IM2 2020"]
[Site "Marianske Lazne"]
[Date "2020.01.21"]
[Round "4.14"]
[White "Sharma Isha"]
[Black "Hilwerda, Jonas"]
[Result "1-0"]
[ECO "B40"]
[WhiteElo "2169"]
[BlackElo "2230"]
[Annotator "ChessBase"]
[PlyCount "93"]
[EventDate "2020.01.18"]
[EventType "tourn"]
[EventCountry "CZE"]
[SourceTitle "playchess.com"]
[Source "ChessBase"]
[SourceQuality "1"]
[TimeControl "40/5400+30:1800+30"]

1. e4 {[%emt 0:00:00]} c5 {[%emt 0:00:00]} 2. Nf3 {[%emt 0:00:00]} e6 {[%emt 0:00:00]} 3. g3 {[%emt 0:00:00]} Nc6 {[%emt 0:00:00]} 4. Bg2 {[%emt 0:00:00]} Nf6 {[%emt 0:00:00]} 5. Qe2 {[%emt 0:00:00]} e5 {[%emt 0:00:00]} 6. d3 {[%emt 0:00:23]} Be7 {[%emt 0:01:34]} 7. O-O {[%emt 0:04:17]} h6 {[%emt 0:01:20]} 8. c3 {[%emt 0:00:28]} O-O {[%emt 0:00:07]} 9. Re1 {[%emt 0:02:05]} Re8 {[%emt 0:00:52]} 10. Na3 {[%emt 0:03:26]} Bf8 {[%emt 0:02:29]} 11. Nc4 {[%emt 0:00:09]} d6 {[%emt 0:01:47]} 12. Ne3 {[%emt 0:00:52]} Be6 {[%emt 0:03:47]} 13. c4 {[%emt 0:03:35]} Rb8 {[%emt 0:02:03]} 14. b3 {[%emt 0:08:33]} a6 {[%emt 0:08:50]} 15. Nd5 {[%emt 0:06:48]} b5 {[%emt 0:11:31]} 16. Be3 Bg4 17. h3 {[%emt 0:08:46]} Bxf3 {[%emt 0:01:49]} 18. Qxf3 Nxd5 {[%emt 0:03:37]} 19. cxd5 {[%emt 0:07:59]} Ne7 {[%emt 0:18:44]} 20. h4 {[%emt 0:06:45]} g6 {[%emt 0:04:48]} 21. g4 {[%emt 0:08:01]} Bg7 {[%emt 0:00:54]} 22. Bh3 {[%emt 0:00:25]} Nc8 {[%emt 0:19:34]} 23. g5 {[%emt 0:01:22]} h5 {[%emt 0:00:02]} 24. Kh1 {[%emt 0:02:16]} Nb6 {[%emt 0:02:25]} 25. Rec1 {[%emt 0:01:53]} Qe7 {[%emt 0:04:44]} 26. Rab1 {[%emt 0:02:52]} b4 {[%emt 0:02:06]} 27. Qe2 {[%emt 0:02:12]} Qb7 {[%emt 0:04:21]} 28. f3 {[%emt 0:04:32]} Re7 {[%emt 0:02:32]} 29. a3 {[%emt 0:00:20]} a5 {[%emt 0:00:18]} 30. Rc2 {[%emt 0:01:11]} Ra8 31. Ra2 {[%emt 0:01:18]} Ree8 {[%emt 0:01:34]} 32. a4 {[%emt 0:02:44]} Qe7 {[%emt 0:01:07]} 33. Rf1 {[%emt 0:00:54]} Nd7 {[%emt 0:00:53]} 34. Qg2 {[%emt 0:01:08]} Rf8 {[%emt 0:00:28]} 35. Qg3 {[%emt 0:01:24]} Rae8 {[%emt 0:01:37]} 36. Rg2 {[%emt 0:00:15]} Kh7 {[%emt 0:00:16]} 37. Rfg1 {[%emt 0:00:17]} Nb6 {[%emt 0:00:49]} 38. Qe1 {[%emt 0:04:01]} Nd7 {[%emt 0:00:44]} 39. Bc1 {[%emt 0:01:54]} Nb6 {[%emt 0:00:18]} 40. Bb2 {[%emt 0:00:37]} Qb7 {[%emt 0:00:39]} 41. Rf2 {[%emt 0:36:05]} Nc8 {[%emt 0:30:17]} 42. f4 {[%emt 0:02:43]} f5 {[%emt 0:00:00]} 43. gxf6 {[%emt 0:00:00]} Bxf6 {[%emt 0:00:00]} 44. f5 {[%emt 0:00:00]} Bxh4 {[%emt 0:00:00]} 45. fxg6+ {[%emt 0:00:00]} Kh6 {[%emt 0:00:00]} 46. Bc1+ {[%emt 0:00:00]} Rf4 {[%emt 0:00:00]} 47. Rxf4 {[%emt 0:00:00]} 1-0

[Event "Marienbad Open IM2 2020"]
[Site "Marianske Lazne"]
[Date "2020.01.21"]
[Round "5.11"]
[White "Strebkovs, Andrejs"]
[Black "Tancsa, Tamas"]
[Result "1-0"]
[ECO "A53"]
[WhiteElo "2278"]
[BlackElo "2193"]
[Annotator "NA"]
[PlyCount "85"]
[EventDate "2020.01.18"]
[EventType "tourn"]
[EventCountry "CZE"]
[SourceTitle "playchess.com"]
[Source "ChessBase"]
[SourceQuality "1"]
[TimeControl "40/5400+30:1800+30"]

1. d4 {[%emt 0:00:00]} Nf6 {[%emt 0:00:00]} 2. c4 {[%emt 0:00:00]} d6 {[%emt 0:00:00]} 3. Nc3 {[%emt 0:00:05]} Nbd7 {[%emt 0:00:24]} 4. Nf3 {[%emt 0:00:20]} g6 {[%emt 0:00:09]} 5. Bg5 {[%emt 0:03:00]} Bg7 {[%emt 0:02:22]} 6. e3 {[%emt 0:00:15]} O-O {[%emt 0:02:40]} 7. Be2 {[%emt 0:00:24]} h6 {[%emt 0:02:44]} 8. Bh4 {[%emt 0:00:06]} c6 {[%emt 0:01:13]} 9. O-O {[%emt 0:00:38]} Qc7 {[%emt 0:04:11]} 10. b4 {[%emt 0:02:50]} e5 {[%emt 0:04:21]} 11. c5 {[%emt 0:06:17]} d5 {[%emt 0:07:16]} 12. Qb3 {[%emt 0:03:05]} Re8 {[%emt 0:10:07]} 13. Rad1 {[%emt 0:06:28]} Ne4 {[%emt 0:07:28]} 14. Nxe4 {[%emt 0:03:19]} dxe4 {[%emt 0:01:24]} 15. Bc4 {[%emt 0:00:52]} Nxc5 {[%emt 0:01:00]} 16. dxc5 {[%emt 0:00:25]} exf3 {[%emt 0:00:09]} 17. gxf3 {[%emt 0:00:56]} b5 {[%emt 0:26:01]} 18. cxb6 {[%emt 0:00:21]} axb6 {[%emt 0:00:06]} 19. a4 {[%emt 0:00:58]} Kh7 {[%emt 0:03:43]} 20. Bxf7 {[%emt 0:03:20]} Rf8 {[%emt 0:00:08]} 21. Be6 {[%emt 0:00:49]} Rxf3 {[%emt 0:00:55]} 22. b5 {[%emt 0:05:09]} Bxe6 {[%emt 0:11:10]} 23. Qxe6 {[%emt 0:00:09]} cxb5 {[%emt 0:00:03]} 24. axb5 {[%emt 0:02:28]} Raf8 {[%emt 0:00:59]} 25. Rd7 {[%emt 0:03:22]} Qc8 {[%emt 0:01:52]} 26. Ra1 {[%emt 0:02:56]} Qc3 {[%emt 0:03:23]} 27. Rad1 {[%emt 0:03:07]} Qc2 {[%emt 0:02:22]} 28. R7d2 {[%emt 0:07:54]} Qa4 {[%emt 0:02:48]} 29. Bg3 {[%emt 0:04:10]} Qxb5 {[%emt 0:02:10]} 30. Rd7 {[%emt 0:00:41]} R3f5 {[%emt 0:03:10]} 31. Qe7 {[%emt 0:04:24]} R8f7 {[%emt 0:00:32]} 32. Qxf7 {[%emt 0:01:27]} Rxf7 {[%emt 0:00:01]} 33. Rxf7 {[%emt 0:00:07]} Kg8 {[%emt 0:00:16]} 34. Rc7 {[%emt 0:02:20]} Bf8 {[%emt 0:00:28]} 35. Rd8 {[%emt 0:01:58]} Qb1+ {[%emt 0:00:59]} 36. Kg2 {[%emt 0:00:06]} Qe4+ {[%emt 0:00:47]} 37. f3 {[%emt 0:00:11]} Qxe3 {[%emt 0:00:32]} 38. Rcc8 {[%emt 0:00:15]} Qe2+ {[%emt 0:00:14]} 39. Bf2 {[%emt 0:00:15]} e4 {[%emt 0:00:30]} 40. Rxf8+ {[%emt 0:02:33]} Kg7 {[%emt 0:00:00]} 41. Rce8 {[%emt 0:33:24]} exf3+ {[%emt 0:01:39]} 42. Kg3 {[%emt 0:00:00]} Qd3 {[%emt 0:01:39]} 43. Rd8 {[%emt 0:00:00]} 1-0

[Event "Marienbad Open IM2 2020"]
[Site "Marianske Lazne"]
[Date "2020.01.21"]
[Round "5.15"]
[White "Vatsal Singhania"]
[Black "Jurek, Josef"]
[Result "1-0"]
[ECO "C03"]
[WhiteElo "2230"]
[BlackElo "2235"]
[Annotator "NA"]
[PlyCount "105"]
[EventDate "2020.01.18"]
[EventType "tourn"]
[EventCountry "CZE"]
[SourceTitle "playchess.com"]
[Source "ChessBase"]
[SourceQuality "1"]
[TimeControl "40/5400+30:1800+30"]

1. e4 {[%emt 0:00:00]} e6 {[%emt 0:00:10]} 2. d4 {[%emt 0:00:00]} d5 {[%emt 0:00:19]} 3. Nd2 {[%emt 0:00:00]} Be7 {[%emt 0:00:27]} 4. Bd3 {[%emt 0:00:00]} c5 {[%emt 0:01:19]} 5. dxc5 {[%emt 0:00:00]} Nf6 {[%emt 0:00:58]} 6. Qe2 {[%emt 0:00:09]} O-O {[%emt 0:01:16]} 7. Ngf3 {[%emt 0:00:12]} a5 {[%emt 0:00:53]} 8. O-O {[%emt 0:01:20]} Na6 {[%emt 0:00:41]} 9. exd5 {[%emt 0:30:23]} exd5 {[%emt 0:10:15]} 10. c6 {[%emt 0:05:10]} bxc6 {[%emt 0:03:54]} 11. Ne5 {[%emt 0:00:11]} Bd6 {[%emt 0:07:49]} 12. Ndf3 {[%emt 0:00:22]} Qc7 {[%emt 0:03:37]} 13. Bf4 {[%emt 0:12:32]} Re8 {[%emt 0:03:55]} 14. Rfe1 {[%emt 0:03:36]} Nc5 {[%emt 0:04:41]} 15. Ng5 {[%emt 0:02:57]} Bg4 {[%emt 0:12:00]} 16. Qe3 {[%emt 0:09:00]} Bh5 {[%emt 0:03:40]} 17. Qg3 {[%emt 0:03:01]} h6 {[%emt 0:05:19]} 18. Nh3 {[%emt 0:02:08]} Nce4 {[%emt 0:03:36]} 19. Bxe4 {[%emt 0:07:56]} Nxe4 {[%emt 0:01:32]} 20. Rxe4 {[%emt 0:00:32]} dxe4 {[%emt 0:00:27]} 21. Ng4 {[%emt 0:00:13]} Bxf4 {[%emt 0:02:00]} 22. Nf6+ {[%emt 0:00:09]} Kh8 {[%emt 0:02:05]} 23. Nxf4 {[%emt 0:00:21]} gxf6 {[%emt 0:07:13]} 24. Ng6+ {[%emt 0:00:16]} Bxg6 {[%emt 0:01:09]} 25. Qxc7 {[%emt 0:00:07]} Rec8 {[%emt 0:02:58]} 26. Qf4 {[%emt 0:00:56]} Kg7 {[%emt 0:00:12]} 27. Rd1 {[%emt 0:00:15]} Ra7 {[%emt 0:05:21]} 28. Rd6 {[%emt 0:03:28]} f5 {[%emt 0:00:21]} 29. h4 {[%emt 0:00:14]} h5 {[%emt 0:01:34]} 30. Qe5+ {[%emt 0:01:17]} Kh7 {[%emt 0:00:40]} 31. a4 {[%emt 0:02:04]} Rb7 {[%emt 0:02:32]} 32. b3 {[%emt 0:00:04]} c5 {[%emt 0:02:00]} 33. Qd5 {[%emt 0:00:06]} Rb4 {[%emt 0:01:37]} 34. Rd7 {[%emt 0:02:42]} Kg7 {[%emt 0:01:28]} 35. Qe5+ {[%emt 0:00:48]} Kg8 {[%emt 0:02:20]} 36. Qf6 {[%emt 0:03:28]} Rbb8 {[%emt 0:00:46]} 37. Kh2 {[%emt 0:01:41]} c4 {[%emt 0:00:53]} 38. Kg3 {[%emt 0:00:38]} cxb3 {[%emt 0:01:14]} 39. cxb3 {[%emt 0:00:05]} e3 {[%emt 0:03:57]} 40. fxe3 {[%emt 0:00:13]} Rxb3 {[%emt 0:02:14]} 41. Kf4 {[%emt 0:30:50]} Rbc3 {[%emt 0:02:28]} 42. Rd8+ {[%emt 0:00:00]} Rxd8 {[%emt 0:00:19]} 43. Qxd8+ {[%emt 0:00:00]} Kh7 {[%emt 0:00:20]} 44. Qxa5 {[%emt 0:00:00]} Rc4+ {[%emt 0:02:39]} 45. Kf3 {[%emt 0:00:00]} Rxh4 {[%emt 0:01:06]} 46. Qb5 {[%emt 0:00:00]} Rh1 {[%emt 0:05:25]} 47. a5 {[%emt 0:00:00]} Ra1 {[%emt 0:00:44]} 48. a6 {[%emt 0:00:00]} h4 {[%emt 0:02:40]} 49. Qb7 {[%emt 0:00:00]} f4 {[%emt 0:03:16]} 50. exf4 {[%emt 0:00:00]} Ra3+ {[%emt 0:02:14]} 51. Kg4 {[%emt 0:00:00]} Kh6 {[%emt 0:01:15]} 52. a7 {[%emt 0:00:00]} h3 {[%emt 0:01:40]} 53. a8=Q {[%emt 0:00:00]} 1-0

[Event "Marienbad Open IM2 2020"]
[Site "Marianske Lazne"]
[Date "2020.01.22"]
[Round "6.11"]
[White "Tancsa, Tamas"]
[Black "Jurek, Josef"]
[Result "1/2-1/2"]
[ECO "B44"]
[WhiteElo "2193"]
[BlackElo "2235"]
[Annotator "NA"]
[PlyCount "39"]
[EventDate "2020.01.18"]
[EventType "tourn"]
[EventCountry "CZE"]
[SourceTitle "playchess.com"]
[Source "ChessBase"]
[SourceQuality "1"]
[TimeControl "40/5400+30:1800+30"]

1. e4 {[%emt 0:00:00]} c5 {[%emt 0:00:00]} 2. Nf3 {[%emt 0:00:00]} e6 {[%emt 0:00:05]} 3. d4 {[%emt 0:00:00]} cxd4 {[%emt 0:00:11]} 4. Nxd4 {[%emt 0:00:00]} Nc6 {[%emt 0:00:41]} 5. Nb5 {[%emt 0:02:41]} d6 {[%emt 0:00:42]} 6. c4 {[%emt 0:00:34]} Nf6 {[%emt 0:00:20]} 7. N1c3 {[%emt 0:00:23]} a6 {[%emt 0:00:23]} 8. Na3 {[%emt 0:00:23]} b6 {[%emt 0:00:35]} 9. Be3 {[%emt 0:01:45]} Bb7 {[%emt 0:00:36]} 10. f3 {[%emt 0:00:24]} Be7 {[%emt 0:00:58]} 11. Be2 {[%emt 0:01:27]} O-O {[%emt 0:00:54]} 12. O-O {[%emt 0:00:16]} Nb8 {[%emt 0:01:55]} 13. Qd2 {[%emt 0:00:29]} Nbd7 {[%emt 0:00:24]} 14. Nc2 {[%emt 0:01:31]} Qc7 {[%emt 0:01:46]} 15. Rac1 {[%emt 0:05:07]} Rac8 {[%emt 0:01:24]} 16. Nd4 {[%emt 0:00:52]} Qb8 {[%emt 0:01:52]} 17. Kh1 Rfe8 {[%emt 0:01:31]} 18. b4 {[%emt 0:01:18]} d5 {[%emt 0:19:56]} 19. cxd5 {[%emt 0:15:16]} exd5 {[%emt 0:01:41]} 20. Nxd5 {[%emt 0:01:57]} 1/2-1/2

[Event "Marienbad Open IM2 2020"]
[Site "Marianske Lazne"]
[Date "2020.01.22"]
[Round "6.14"]
[White "Marszalek, Maciej"]
[Black "Gorbatov, Alexej"]
[Result "1/2-1/2"]
[ECO "D33"]
[WhiteElo "2314"]
[BlackElo "2355"]
[Annotator "NA"]
[PlyCount "67"]
[EventDate "2020.01.18"]
[EventType "tourn"]
[EventCountry "CZE"]
[SourceTitle "playchess.com"]
[Source "ChessBase"]
[SourceQuality "1"]
[TimeControl "40/5400+30:1800+30"]

1. d4 {[%emt 0:00:00]} d5 {[%emt 0:00:00]} 2. c4 {[%emt 0:00:00]} e6 {[%emt 0:00:00]} 3. Nf3 {[%emt 0:00:00]} c5 {[%emt 0:00:01]} 4. cxd5 {[%emt 0:01:08]} exd5 {[%emt 0:00:03]} 5. Nc3 {[%emt 0:00:23]} Nf6 {[%emt 0:00:31]} 6. g3 {[%emt 0:00:08]} Nc6 {[%emt 0:00:05]} 7. Bg2 {[%emt 0:00:06]} cxd4 {[%emt 0:00:07]} 8. Nxd4 {[%emt 0:00:20]} Bc5 {[%emt 0:00:02]} 9. Nxc6 {[%emt 0:01:41]} bxc6 {[%emt 0:00:07]} 10. O-O {[%emt 0:00:09]} O-O {[%emt 0:00:12]} 11. Na4 {[%emt 0:01:16]} Bb6 {[%emt 0:04:01]} 12. Nxb6 {[%emt 0:00:31]} axb6 {[%emt 0:00:06]} 13. Qc2 {[%emt 0:04:11]} Bb7 {[%emt 0:07:28]} 14. Rd1 {[%emt 0:02:58]} Qe7 {[%emt 0:00:34]} 15. Bg5 {[%emt 0:04:26]} h6 {[%emt 0:03:35]} 16. Bxf6 {[%emt 0:01:38]} Qxf6 {[%emt 0:00:02]} 17. a4 {[%emt 0:02:20]} Rfd8 {[%emt 0:02:36]} 18. e3 {[%emt 0:07:55]} c5 {[%emt 0:09:41]} 19. a5 {[%emt 0:10:36]} Ra6 {[%emt 0:14:24]} 20. axb6 {[%emt 0:04:00]} Rxb6 {[%emt 0:07:16]} 21. Rab1 {[%emt 0:05:12]} c4 {[%emt 0:02:35]} 22. b3 {[%emt 0:05:00]} Rb4 {[%emt 0:07:43]} 23. bxc4 {[%emt 0:02:51]} Rxc4 {[%emt 0:00:02]} 24. Qa2 {[%emt 0:17:01]} Bc6 {[%emt 0:11:54]} 25. Qe2 {[%emt 0:05:07]} Ra4 {[%emt 0:08:25]} 26. Rbc1 {[%emt 0:00:43]} Bb7 {[%emt 0:02:06]} 27. Qc2 {[%emt 0:09:49]} Rc4 {[%emt 0:04:15]} 28. Qb1 {[%emt 0:00:41]} Rxc1 {[%emt 0:01:01]} 29. Qxc1 {[%emt 0:00:35]} Qb6 {[%emt 0:05:12]} 30. Qb1 {[%emt 0:00:28]} Qxb1 {[%emt 0:00:55]} 31. Rxb1 {[%emt 0:00:02]} Ba6 {[%emt 0:01:25]} 32. Rd1 {[%emt 0:00:58]} Bc4 {[%emt 0:00:01]} 33. Bf1 {[%emt 0:05:00]} Rc8 {[%emt 0:01:11]} 34. Rc1 1/2-1/2